bitfinex/quotes_BTCUSD_20241027
["timestamp","ask_amount","ask_price","bid_price","bid_amount"]
[1729997387587,0.38745901,67016.0,67015.0,0.15057721]
[1729997387805,0.40144885,67016.0,67015.0,0.15057721]
[1729997391257,0.40144885,67016.0,67015.0,0.1169685]
[1729997394791,0.32870668,67016.0,67015.0,0.1169685]
[1729997395005,0.40143314,67016.0,67015.0,0.1169685]
[1729997395886,0.40143314,67016.0,67015.0,0.1186125]
[1729997398494,0.40143116,67016.0,67015.0,0.1186125]
[1729997400118,0.40143116,67016.0,67015.0,0.001644]
[1729997400748,0.40133203,67016.0,67015.0,0.001644]
[1729997401204,0.40132879,67016.0,67015.0,0.001644]
[1729997404718,0.32860755,67016.0,67015.0,0.001644]
[1729997404943,0.40131931,67016.0,67015.0,0.001644]
[1729997405810,0.38733628,67016.0,67015.0,0.001644]
[1729997406043,0.38733512,67016.0,67015.0,0.001644]
[1729997407447,0.36496377,67016.0,67015.0,0.001644]
[1729997407565,0.39293009,67016.0,67013.0,0.149224]
[1729997407786,0.35202532,67015.0,67013.0,0.149224]
[1729997408009,0.17914841,67014.0,67013.0,0.149224]
[1729997408247,0.19126225,67014.0,67013.0,0.149224]
[1729997408479,0.21363535,67014.0,67013.0,0.149224]
[1729997409381,0.2136387,67014.0,67013.0,0.149224]
[1729997409638,0.00041921,67010.0,67009.0,0.001688]
[1729997409860,0.27675891,67010.0,67009.0,0.001688]
[1729997410114,0.36413715,67010.0,67009.0,0.001688]
[1729997410358,0.36413715,67010.0,67009.0,0.150921]
[1729997410813,0.47598853,67010.0,67009.0,0.150921]
[1729997411507,0.36413715,67010.0,67009.0,0.150921]
[1729997411739,0.47597934,67010.0,67009.0,0.150921]
[1729997411962,0.36413715,67010.0,67009.0,0.150921]
[1729997412922,0.4759716,67010.0,67009.0,0.150921]
[1729997413383,0.43961531,67010.0,67009.0,0.150921]
[1729997413606,0.47595461,67010.0,67009.0,0.150921]
[1729997413872,0.36412016,67010.0,67009.0,0.150921]
[1729997414109,0.47595461,67010.0,67009.0,0.001688]
[1729997414334,0.36412016,67010.0,67009.0,0.001688]
[1729997414558,0.53892016,67010.0,67009.0,0.001688]
[1729997415461,0.53892016,67010.0,67009.0,0.150921]
[1729997416372,0.51655751,67010.0,67009.0,0.150921]
[1729997416604,0.62834064,67010.0,67009.0,0.150921]
[1729997417261,0.62833514,67010.0,67009.0,0.150921]
[1729997418369,0.62833514,67010.0,67009.0,0.001688]
[1729997418370,0.62820022,67010.0,67009.0,0.001688]
[1729997418590,0.62820022,67010.0,67009.0,0.150921]
[1729997418817,0.51642562,67010.0,67009.0,0.150921]
[1729997419273,0.43872562,67010.0,67009.0,0.150921]
[1729997419499,0.5504852,67010.0,67009.0,0.001688]
[1729997419951,0.43872562,67010.0,67009.0,0.001688]
[1729997420463,0.55047885,67010.0,67009.0,0.150921]
[1729997420690,0.43872562,67010.0,67009.0,0.150921]
[1729997420922,0.55047154,67010.0,67009.0,0.001688]
[1729997421148,0.43872223,67010.0,67009.0,0.001688]
[1729997421374,0.53709879,67010.0,67009.0,0.001688]
[1729997421588,0.43872223,67010.0,67009.0,0.001688]
[1729997422276,0.43872223,67010.0,67009.0,0.150921]
[1729997422736,0.55045119,67010.0,67009.0,0.150921]
[1729997422966,0.43872223,67010.0,67009.0,0.150921]
[1729997423194,0.43865419,67010.0,67009.0,0.150921]
[1729997423424,0.43865419,67010.0,67009.0,0.001688]
[1729997424357,0.55037579,67010.0,67009.0,0.150921]
[1729997424580,0.53640803,67010.0,67009.0,0.150921]
[1729997424804,0.55037282,67010.0,67009.0,0.150921]
[1729997426619,0.55037282,67010.0,67009.0,0.001688]
[1729997427296,0.43865122,67010.0,67009.0,0.001688]
[1729997427778,0.55036093,67010.0,67009.0,0.150921]
[1729997427991,0.55036093,67010.0,67009.0,0.001688]
[1729997428467,0.55036102,67010.0,67009.0,0.001688]
[1729997428696,0.53639614,67010.0,67009.0,0.001688]
[1729997428914,0.55036103,67010.0,67009.0,0.001688]
[1729997429570,0.43865132,67010.0,67009.0,0.001688]
[1729997430239,0.53702788,67010.0,67009.0,0.001688]
[1729997432287,0.53702736,67010.0,67009.0,0.001688]
[1729997433435,0.61432736,67010.0,67009.0,0.001688]
[1729997435991,0.60036299,67010.0,67009.0,0.001688]
[1729997436217,0.61432899,67010.0,67009.0,0.001688]
[1729997438222,0.76355999,67010.0,67009.0,0.001688]
[1729997438456,0.61432899,67010.0,67009.0,0.001688]
[1729997439110,0.34155243,67010.0,67009.0,0.001688]
[1729997439989,0.32758643,67010.0,67009.0,0.001688]
[1729997439995,0.3415573,67010.0,67009.0,0.001688]
[1729997440449,0.00041921,67009.0,67008.0,0.00143382]
[1729997440666,0.32986803,67009.0,67008.0,0.00143382]
[1729997440890,0.3443735,67009.0,67008.0,0.00143382]
[1729997444537,0.17939936,67009.0,67008.0,0.00143382]
[1729997444750,0.34434842,67009.0,67008.0,0.00143382]
[1729997451023,0.3443538,67009.0,67008.0,0.00143382]
[1729997451252,0.34439761,67009.0,67008.0,0.00143382]
[1729997454573,0.33042136,67009.0,67008.0,0.00143382]
[1729997454785,0.34439906,67009.0,67008.0,0.00143382]
[1729997455894,0.34445358,67009.0,67008.0,0.00143382]
[1729997456102,0.34425556,67009.0,67008.0,0.00143382]
[1729997460596,0.34425556,67009.0,67008.0,0.15066882]
[1729997460811,0.34425556,67009.0,67008.0,0.00143382]
[1729997461031,0.33027786,67009.0,67008.0,0.00143382]
[1729997461276,0.34425959,67009.0,67008.0,0.00143382]
[1729997463580,0.19375578,67009.0,67008.0,0.34424538]
[1729997463820,0.30556803,67009.0,67008.0,0.34424538]
[1729997464278,0.30639003,67009.0,67008.0,0.34424538]
[1729997464499,0.30639003,67009.0,67008.0,0.34448212]
[1729997464713,0.02953039,67009.0,67008.0,0.34448212]
[1729997464935,0.07425231,67009.0,67008.0,0.34448212]
[1729997465192,0.01480373,67009.0,67008.0,0.42148212]
[1729997465413,0.02937738,67009.0,67008.0,0.42148212]
[1729997466156,0.01480373,67009.0,67008.0,0.42148212]
[1729997468269,0.01480373,67009.0,67008.0,0.43343434]
[1729997472087,0.000822,67009.0,67008.0,0.43343434]
[1729997473198,0.000822,67009.0,67008.0,0.78731471]
[1729997473411,0.000822,67009.0,67008.0,0.68893815]
[1729997475420,0.000822,67009.0,67008.0,0.69871696]
[1729997485520,0.000822,67009.0,67008.0,0.70468496]
[1729997489936,0.000822,67009.0,67008.0,0.70668496]
[1729997490177,0.000822,67009.0,67008.0,0.85420154]
[1729997490371,0.000822,67009.0,67008.0,0.85620154]
[1729997490911,0.000822,67009.0,67008.0,0.75782498]
[1729997491122,0.000822,67009.0,67008.0,0.85620154]
[1729997493611,0.000822,67009.0,67008.0,0.75782498]
[1729997494059,0.000822,67009.0,67008.0,0.85620154]
[1729997494746,0.000822,67009.0,67008.0,0.75782498]
[1729997495451,0.000822,67009.0,67008.0,0.85620154]
[1729997495940,0.000822,67009.0,67008.0,0.75782498]
[1729997496577,0.000822,67009.0,67008.0,0.85620154]
[1729997497024,0.000822,67009.0,67008.0,0.87920154]
[1729997501389,0.000822,67015.0,67014.0,0.16423755]
[1729997501610,0.000822,67015.0,67014.0,0.8085252]
[1729997501843,0.000822,67015.0,67014.0,0.80554147]
[1729997503024,0.000822,67015.0,67014.0,0.60878835]
[1729997503258,0.000822,67015.0,67014.0,0.80554147]
[1729997511355,0.000822,67015.0,67014.0,0.79576266]
[1729997511582,0.000822,67015.0,67014.0,0.80554147]
[1729997526650,0.000822,67015.0,67014.0,0.80054147]
[1729997527307,0.000822,67015.0,67014.0,0.60378835]
[1729997527531,0.000822,67015.0,67014.0,0.80054147]
[1729997527967,0.000822,67015.0,67014.0,0.79576266]
[1729997531783,0.000822,67015.0,67014.0,0.71946266]
[1729997532002,0.000822,67015.0,67014.0,0.72146266]
[1729997534764,0.000822,67015.0,67014.0,0.76617093]
[1729997534984,0.000822,67015.0,67014.0,0.76619993]
[1729997536436,0.000822,67015.0,67014.0,0.72146266]
[1729997537894,0.000822,67015.0,67014.0,0.77329181]
[1729997538233,0.000822,67015.0,67014.0,0.57871525]
[1729997538428,0.000822,67015.0,67014.0,0.67709181]
[1729997542734,0.000822,67015.0,67014.0,0.63234147]
[1729997543170,0.000822,67015.0,67014.0,0.53396491]
[1729997543443,0.000822,67015.0,67014.0,0.54794291]
[1729997549145,0.000822,67015.0,67014.0,0.54994291]
[1729997549371,0.000822,67015.0,67014.0,0.54794291]
[1729997550503,0.000822,67015.0,67014.0,0.69686479]
[1729997551841,0.000822,67015.0,67014.0,0.68708598]
[1729997552067,0.000822,67015.0,67014.0,0.69686479]
[1729997557323,0.000822,67015.0,67014.0,0.7640529]
[1729997558226,0.000822,67015.0,67014.0,0.66567634]
[1729997558443,0.000822,67015.0,67014.0,0.31987438]
[1729997558887,0.000822,67015.0,67014.0,0.27508454]
[1729997560131,0.000822,67015.0,67014.0,0.27030573]
[1729997561001,0.18658808,67015.0,67014.0,0.27030573]
[1729997563855,0.1865812,67015.0,67014.0,0.27030573]
[1729997571193,0.18657123,67015.0,67014.0,0.27030573]
[1729997574860,0.172622,67015.0,67014.0,0.27030573]
[1729997575085,0.18657304,67015.0,67014.0,0.27030573]
[1729997581356,0.18657552,67015.0,67014.0,0.27030573]
[1729997584856,0.172622,67015.0,67014.0,0.27030573]
[1729997585069,0.18657991,67015.0,67014.0,0.27030573]
[1729997588448,0.18659092,67015.0,67014.0,0.27030573]
[1729997588665,0.20055984,67015.0,67014.0,0.27030573]
[1729997593318,0.18659092,67015.0,67014.0,0.27030573]
[1729997593536,0.20056859,67015.0,67014.0,0.27030573]
[1729997593971,0.21450385,67015.0,67014.0,0.27030573]
[1729997594611,0.21450385,67015.0,67014.0,0.36868229]
[1729997595926,0.21450952,67015.0,67014.0,0.36868229]
[1729997596414,0.20057426,67015.0,67014.0,0.36868229]
[1729997596620,0.21450952,67015.0,67014.0,0.36868229]
[1729997597063,0.20057426,67015.0,67014.0,0.36868229]
[1729997597297,0.21450952,67015.0,67014.0,0.36868229]
[1729997597738,0.20057426,67015.0,67014.0,0.36868229]
[1729997597956,0.21450952,67015.0,67014.0,0.36868229]
[1729997598397,0.21450952,67015.0,67014.0,0.27030573]
[1729997598616,0.20057426,67015.0,67014.0,0.27030573]
[1729997598842,0.21450952,67015.0,67014.0,0.27030573]
[1729997599483,0.21450704,67015.0,67014.0,0.27030573]
[1729997600160,0.20057178,67015.0,67014.0,0.27030573]
[1729997600845,0.20057178,67015.0,67014.0,0.36868229]
[1729997602367,0.12437178,67015.0,67014.0,0.36868229]
[1729997603006,0.13760633,67015.0,67014.0,0.36868229]
[1729997603190,0.13760495,67015.0,67014.0,0.36868229]
[1729997606732,0.04200495,67015.0,67014.0,0.36868229]
[1729997606954,0.0420021,67015.0,67014.0,0.36868229]
[1729997607197,0.02876755,67015.0,67014.0,0.36868229]
[1729997607860,0.0420021,67015.0,67014.0,0.36868229]
[1729997608528,0.02876755,67015.0,67014.0,0.36868229]
[1729997610588,0.01479335,67015.0,67014.0,0.36868229]
[1729997610809,0.000822,67015.0,67014.0,0.36868229]
[1729997611057,0.028766,67015.0,67014.0,0.36868229]
[1729997613934,0.0287666,67015.0,67014.0,0.36868229]
[1729997620123,0.0147946,67015.0,67014.0,0.51992231]
[1729997620377,0.0147946,67015.0,67014.0,0.46878229]
[1729997621493,0.01479464,67015.0,67014.0,0.46878229]
[1729997623503,0.01479464,67015.0,67014.0,0.4479353]
[1729997624639,0.01479464,67015.0,67014.0,0.34955874]
[1729997624852,0.01479464,67015.0,67014.0,0.24945874]
[1729997625516,0.02876515,67015.0,67014.0,0.24945874]
[1729997625995,0.01479464,67015.0,67014.0,0.24945874]
[1729997626470,0.02876532,67015.0,67014.0,0.24945874]
[1729997627553,0.04183751,67015.0,67014.0,0.24945874]
[1729997628464,0.02786683,67015.0,67014.0,0.24945874]
[1729997628681,0.04183765,67015.0,67014.0,0.24945874]
[1729997630073,0.04183801,67015.0,67014.0,0.24945874]
[1729997631178,0.04183632,67015.0,67014.0,0.24945874]
[1729997632078,0.01389419,67015.0,67014.0,0.24945874]
[1729997632286,0.04183598,67015.0,67014.0,0.24945874]
[1729997632494,0.02876379,67015.0,67014.0,0.24945874]
[1729997632771,0.04183772,67015.0,67014.0,0.24945874]
[1729997636569,0.04183843,67015.0,67014.0,0.24945874]
[1729997639219,0.01389593,67015.0,67014.0,0.24945874]
[1729997639446,0.04184035,67015.0,67014.0,0.24945874]
[1729997639671,0.02876642,67015.0,67014.0,0.24945874]
[1729997639877,0.04183892,67015.0,67014.0,0.24945874]
[1729997641900,0.0418377,67015.0,67014.0,0.24945874]
[1729997645455,0.04183882,67015.0,67014.0,0.24945874]
[1729997645936,0.21593882,67015.0,67014.0,0.149222]
[1729997646150,0.23829433,67015.0,67014.0,0.149222]
[1729997646374,0.28300127,67015.0,67014.0,0.149222]
[1729997647060,0.28322202,67015.0,67014.0,0.149222]
[1729997647356,0.00022119,67012.0,67011.0,0.149229]
[1729997647517,0.29165964,67012.0,67011.0,0.149229]
[1729997647729,0.22462102,67012.0,67011.0,0.149229]
[1729997647948,0.23768678,67012.0,67011.0,0.149229]
[1729997648399,0.30468869,67012.0,67011.0,0.149229]
[1729997649223,0.30466149,67012.0,67011.0,0.149229]
[1729997649466,0.23763853,67012.0,67011.0,0.149229]
[1729997649685,0.25996573,67012.0,67011.0,0.149229]
[1729997650565,0.30463251,67012.0,67011.0,0.149229]
[1729997650786,0.25996573,67012.0,67011.0,0.149229]
[1729997652381,0.3046168,67012.0,67011.0,0.149229]
[1729997652801,0.0936,67011.0,67009.0,0.150876]
[1729997653019,0.10777014,67010.0,67009.0,0.150877]
[1729997653256,0.12095889,67010.0,67009.0,0.150877]
[1729997653484,0.15722591,67010.0,67009.0,0.150877]
[1729997653698,0.15722591,67010.0,67009.0,0.001644]
[1729997653699,0.23692591,67010.0,67009.0,0.001644]
[1729997653920,0.28157698,67010.0,67009.0,0.150877]
[1729997654147,0.30388693,67010.0,67009.0,0.150877]
[1729997654363,0.25924404,67010.0,67009.0,0.150877]
[1729997654589,0.30388693,67010.0,67009.0,0.150877]
[1729997655497,0.25924404,67010.0,67009.0,0.150877]
[1729997656145,0.25924404,67010.0,67009.0,0.001644]
[1729997656325,0.25924404,67010.0,67009.0,0.150877]
[1729997656594,0.20901355,67010.0,67009.0,0.150877]
[1729997656846,0.28150031,67010.0,67009.0,0.150877]
[1729997660258,0.23131717,67010.0,67009.0,0.150877]
[1729997660456,0.28149135,67010.0,67009.0,0.150877]
[1729997663814,0.06358412,67010.0,67009.0,0.150877]
[1729997664061,0.06358412,67010.0,67009.0,0.15111374]
[1729997664295,0.01415877,67010.0,67009.0,0.15111374]
[1729997664593,0.02809637,67010.0,67009.0,0.15111374]
[1729997666123,0.02810151,67010.0,67009.0,0.15111374]
[1729997667045,0.05040577,67010.0,67009.0,0.15111374]
[1729997667258,0.02810151,67010.0,67009.0,0.15111374]
[1729997667906,0.01416135,67010.0,67009.0,0.15111374]
[1729997668122,0.0281046,67010.0,67009.0,0.15111374]
[1729997668346,0.05040886,67010.0,67009.0,0.15111374]
[1729997671826,0.05041414,67010.0,67009.0,0.15111374]
[1729997674535,0.05019295,67010.0,67009.0,0.23359821]
[1729997674786,0.05019295,67010.0,67009.0,0.32491374]
[1729997675882,0.02788869,67010.0,67009.0,0.42491374]
[1729997676102,0.01394016,67010.0,67009.0,0.42491374]
[1729997676323,0.01394016,67010.0,67009.0,0.43665164]
[1729997677403,0.000822,67015.0,67010.0,0.1]
[1729997677634,0.000822,67015.0,67014.0,0.2478353]
[1729997677875,0.05108423,67015.0,67014.0,0.2478353]
[1729997679000,0.05108423,67015.0,67014.0,0.3478353]
[1729997679239,0.02874546,67015.0,67014.0,0.5257353]
[1729997679443,0.000822,67015.0,67014.0,0.5257353]
[1729997686633,0.000822,67015.0,67014.0,0.62411186]
[1729997686840,0.000822,67015.0,67014.0,0.5257353]
[1729997687063,0.000822,67015.0,67014.0,0.62411186]
[1729997687280,0.000822,67015.0,67014.0,0.77961567]
[1729997688816,0.000822,67015.0,67014.0,0.68123911]
[1729997702836,0.000822,67015.0,67014.0,0.77961567]
[1729997703308,0.000822,67015.0,67014.0,0.83075569]
[1729997704413,0.000822,67015.0,67014.0,0.68123911]
[1729997708769,0.000822,67015.0,67014.0,0.40496255]
[1729997710492,0.01479669,67015.0,67014.0,0.40496255]
[1729997712636,0.01479669,67015.0,67014.0,0.50333911]
[1729997714288,0.000822,67015.0,67014.0,0.50333911]
[1729997715508,0.000822,67015.0,67014.0,0.60171567]
[1729997715730,0.000822,67015.0,67014.0,0.7542345]
[1729997716166,0.000822,67015.0,67014.0,0.8328345]
[1729997716612,0.01479734,67015.0,67014.0,0.8328345]
[1729997716790,0.000822,67015.0,67014.0,0.8328345]
[1729997717205,0.000822,67015.0,67014.0,0.8308345]
[1729997725921,0.000822,67015.0,67014.0,0.8328345]
[1729997726136,0.000822,67015.0,67014.0,0.8308345]
[1729997728766,0.000822,67015.0,67014.0,0.87558944]
[1729997728980,0.000822,67015.0,67014.0,0.8308345]
[1729997732046,0.000822,67015.0,67014.0,0.8328345]
[1729997732278,0.000822,67015.0,67014.0,0.8308345]
[1729997735689,0.000822,67015.0,67014.0,1.04398859]
[1729997736758,0.000822,67015.0,67014.0,0.89795829]
[1729997737640,0.000822,67015.0,67014.0,0.8308345]
[1729997737861,0.000822,67015.0,67014.0,0.89795829]
[1729997738744,0.000822,67015.0,67014.0,0.89795269]
[1729997739200,0.000822,67015.0,67014.0,0.8308345]
[1729997741575,0.000822,67015.0,67014.0,0.87558199]
[1729997742417,0.000822,67015.0,67014.0,0.8308345]
[1729997742832,0.000822,67015.0,67014.0,0.8755823]
[1729997743274,0.000822,67015.0,67014.0,0.8308345]
[1729997743477,0.000822,67015.0,67014.0,0.87558326]
[1729997743688,0.000822,67015.0,67014.0,0.8308345]
[1729997744302,0.000822,67015.0,67014.0,0.87558355]
[1729997745400,0.000822,67015.0,67014.0,0.8308345]
[1729997753981,0.000822,67015.0,67014.0,0.6626345]
[1729997758256,0.000822,67015.0,67014.0,0.72977058]
[1729997759448,0.000822,67015.0,67014.0,0.87680771]
[1729997761522,0.000822,67015.0,67014.0,0.80967163]
[1729997763426,0.000822,67015.0,67014.0,0.81167163]
[1729997763649,0.000822,67015.0,67014.0,0.80967163]
[1729997766819,0.000822,67015.0,67014.0,0.8991864]
[1729997767260,0.000822,67015.0,67014.0,0.80967163]
[1729997769236,0.000822,67015.0,67014.0,0.8991864]
[1729997775184,0.000822,67015.0,67014.0,0.9011864]
[1729997775845,0.000822,67015.0,67014.0,0.90125022]
[1729997777411,0.000822,67015.0,67014.0,0.81167163]
[1729997777619,0.000822,67015.0,67014.0,0.92356509]
[1729997777881,0.000822,67015.0,67014.0,0.97022383]
[1729997779640,0.000822,67015.0,67014.0,0.97054064]
[1729997780495,0.000822,67015.0,67014.0,0.9238819]
[1729997780916,0.000822,67015.0,67014.0,0.81191347]
[1729997782477,0.000822,67015.0,67014.0,0.9238819]
[1729997783771,0.000822,67015.0,67014.0,0.89948909]
[1729997784230,0.000822,67015.0,67014.0,0.89961266]
[1729997784456,0.000822,67015.0,67014.0,0.8012361]
[1729997786074,0.000822,67015.0,67014.0,0.56425794]
[1729997786302,0.000822,67015.0,67014.0,0.80098909]
[1729997786526,0.000822,67015.0,67014.0,0.71141169]
[1729997786999,0.000822,67015.0,67014.0,0.80098754]
[1729997789625,0.000822,67015.0,67014.0,0.74984752]
[1729997789835,0.000822,67015.0,67014.0,0.66027167]
[1729997790257,0.000822,67015.0,67014.0,0.74988423]
[1729997790896,0.000822,67015.0,67014.0,0.66030658]
[1729997800063,0.000822,67015.0,67014.0,0.74988423]
[1729997803087,0.000822,67015.0,67014.0,0.74983987]
[1729997804453,0.000822,67015.0,67014.0,0.66026788]
[1729997806500,0.000822,67015.0,67014.0,0.48192133]
[1729997806732,0.000822,67015.0,67014.0,0.47214252]
[1729997806965,0.01357391,67015.0,67014.0,0.40496255]
[1729997807214,0.000822,67015.0,67014.0,0.40496255]
[1729997807904,0.176222,67015.0,67014.0,0.24945874]
[1729997808137,0.19019961,67015.0,67014.0,0.24945874]
[1729997810466,0.19019246,67015.0,67014.0,0.24945874]
[1729997812573,0.176222,67015.0,67014.0,0.24945874]
[1729997813307,0.176222,67015.0,67014.0,0.14945874]
[1729997813308,0.2041497,67015.0,67014.0,0.14945874]
[1729997813543,0.2171228,67015.0,67014.0,0.14945874]
[1729997813976,0.21711937,67015.0,67014.0,0.14945874]
[1729997817429,0.21709418,67015.0,67014.0,0.14945874]
[1729997823408,0.21708356,67015.0,67014.0,0.14945874]
[1729997824645,0.21708356,67015.0,67014.0,0.149222]
[1729997834358,0.21708397,67015.0,67014.0,0.149222]
[1729997836313,0.23938648,67015.0,67014.0,0.149222]
[1729997836757,0.21708397,67015.0,67014.0,0.149222]
[1729997837686,0.23938648,67015.0,67014.0,0.149222]
[1729997837927,0.22544715,67015.0,67014.0,0.149222]
[1729997838160,0.23939957,67015.0,67014.0,0.149222]
[1729997838397,0.22544715,67015.0,67014.0,0.149222]
[1729997839071,0.1891951,67015.0,67014.0,0.149222]
[1729997839256,0.20314879,67015.0,67014.0,0.149222]
[1729997839786,0.1891951,67015.0,67014.0,0.149222]
[1729997840257,0.23943432,67015.0,67014.0,0.149222]
[1729997840485,0.2254788,67015.0,67014.0,0.149222]
[1729997840938,0.20315032,67015.0,67014.0,0.149222]
[1729997841162,0.23944141,67015.0,67014.0,0.149222]
[1729997843915,0.1891951,67015.0,67014.0,0.149222]
[1729997844138,0.22550303,67015.0,67014.0,0.149222]
[1729997844361,0.25343199,67015.0,67014.0,0.149222]
[1729997844587,0.25343181,67015.0,67014.0,0.149222]
[1729997847747,0.20315969,67015.0,67014.0,0.149222]
[1729997847965,0.25344097,67015.0,67014.0,0.149222]
[1729997848195,0.25344098,67015.0,67014.0,0.149222]
[1729997851092,0.23947639,67015.0,67014.0,0.149222]
[1729997851573,0.22551448,67015.0,67014.0,0.149222]
[1729997851789,0.23948347,67015.0,67014.0,0.149222]
[1729997852948,0.28406545,67015.0,67014.0,0.149222]
[1729997853165,0.23948347,67015.0,67014.0,0.149222]
[1729997853386,0.28406545,67015.0,67014.0,0.149222]
[1729997854993,0.00022119,67012.0,67011.0,0.149229]
[1729997855244,0.19149194,67012.0,67011.0,0.149229]
[1729997855479,0.20433508,67012.0,67011.0,0.149229]
[1729997855692,0.40550336,67012.0,67011.0,0.149229]
[1729997856357,0.49466732,67012.0,67011.0,0.149229]
[1729997857261,0.097,67011.0,67009.0,0.150876]
[1729997857498,0.20140245,67010.0,67009.0,0.150876]
[1729997857733,0.41454822,67010.0,67009.0,0.150876]
[1729997859360,0.32521374,67010.0,67009.0,0.150876]
[1729997860922,0.32521374,67010.0,67009.0,0.001644]
[1729997861156,0.51896255,67010.0,67009.0,0.001644]
[1729997861611,0.51894185,67010.0,67009.0,0.001644]
[1729997862610,0.48259774,67010.0,67009.0,0.001644]
[1729997862848,0.51887154,67010.0,67009.0,0.001644]
[1729997864621,0.49652261,67010.0,67009.0,0.001644]
[1729997865281,0.49652261,67010.0,67009.0,0.150877]
[1729997866158,0.37096963,67010.0,67009.0,0.150877]
[1729997866373,0.40721501,67010.0,67009.0,0.150877]
[1729997866815,0.46021804,67010.0,67009.0,0.150877]
[1729997867040,0.49647076,67010.0,67009.0,0.150877]
[1729997868124,0.24235801,67010.0,67009.0,0.150877]
[1729997869343,0.30930046,67010.0,67009.0,0.150877]
[1729997869563,0.49634991,67010.0,67009.0,0.150877]
[1729997870010,0.49634839,67010.0,67009.0,0.150877]
[1729997870241,0.24235649,67010.0,67009.0,0.150877]
[1729997870900,0.4070954,67010.0,67009.0,0.150877]
[1729997871121,0.22720122,67010.0,67009.0,0.150877]
[1729997871349,0.1379477,67010.0,67009.0,0.150877]
[1729997871572,0.2271999,67010.0,67009.0,0.150877]
[1729997871791,0.20489111,67010.0,67009.0,0.150877]
[1729997872020,0.2271999,67010.0,67009.0,0.150877]
[1729997872251,0.20489111,67010.0,67009.0,0.150877]
[1729997872443,0.16025649,67010.0,67009.0,0.150877]
[1729997872704,0.2271999,67010.0,67009.0,0.150877]
[1729997872929,0.16025649,67010.0,67009.0,0.150877]
[1729997873146,0.22719778,67010.0,67009.0,0.150877]
[1729997873376,0.16025649,67010.0,67009.0,0.150877]
[1729997873900,0.01306172,67010.0,67009.0,0.150877]
[1729997874091,0.04095242,67010.0,67009.0,0.15111374]
[1729997876337,0.02811189,67010.0,67009.0,0.15111374]
[1729997877456,0.02811189,67010.0,67009.0,0.24331374]
[1729997877731,0.0278907,67010.0,67009.0,0.24331374]
[1729997877942,0.02811189,67010.0,67009.0,0.24331374]
[1729997878814,0.02975589,67010.0,67009.0,0.24331374]
[1729997880648,0.02975589,67010.0,67009.0,0.42411374]
[1729997880649,0.0295347,67010.0,67009.0,0.42411374]
[1729997885807,0.01558935,67010.0,67009.0,0.42411374]
[1729997887983,0.01559428,67010.0,67009.0,0.42411374]
[1729997891890,0.01559099,67010.0,67009.0,0.42411374]
[1729997899657,0.001644,67010.0,67009.0,0.42411374]
[1729997899884,0.01559701,67010.0,67009.0,0.42411374]
[1729997901040,0.001644,67010.0,67009.0,0.42411374]
[1729997901265,0.01559933,67010.0,67009.0,0.42411374]
[1729997902145,0.001644,67010.0,67009.0,0.42411374]
[1729997902365,0.01560432,67010.0,67009.0,0.42411374]
[1729997902815,0.01560432,67010.0,67009.0,0.67799411]
[1729997902816,0.001644,67010.0,67009.0,0.67799411]
[1729997903308,0.001644,67010.0,67009.0,0.61239636]
[1729997903536,0.001644,67010.0,67009.0,0.58939636]
[1729997912052,0.001644,67010.0,67009.0,0.68777292]
[1729997914187,0.001644,67010.0,67009.0,0.69374092]
[1729997918169,0.00141825,67010.0,67009.0,0.69374092]
[1729997923948,0.00141825,67010.0,67009.0,0.68896211]
[1729997924171,0.00141825,67010.0,67009.0,0.69374092]
[1729997925360,0.00141825,67010.0,67009.0,0.68396211]
[1729997925577,0.00141825,67010.0,67009.0,0.69374092]
[1729997926259,0.00141825,67010.0,67009.0,0.68396211]
[1729997926484,0.00141825,67010.0,67009.0,0.69374092]
[1729997929897,0.00141825,67010.0,67009.0,0.68396211]
[1729997930436,0.00141825,67010.0,67009.0,0.69374092]
[1729997932304,0.00141825,67010.0,67009.0,0.30758555]
[1729997932539,0.00141825,67010.0,67009.0,0.30161755]
[1729997932797,0.0153881,67010.0,67009.0,0.30161755]
[1729997933261,0.0153881,67010.0,67009.0,0.30661755]
[1729997933744,0.00141825,67010.0,67009.0,0.40661755]
[1729997934894,0.01538478,67010.0,67009.0,0.40661755]
[1729997935577,0.00141825,67010.0,67009.0,0.40661755]
[1729997938304,0.00141825,67010.0,67009.0,0.25111374]
[1729997938530,0.01537922,67010.0,67009.0,0.25111374]
[1729997939317,0.02766981,67010.0,67009.0,0.25111374]
[1729997940026,0.01537922,67010.0,67009.0,0.25111374]
[1729997940749,0.11327922,67010.0,67009.0,0.25111374]
[1729997941439,0.19397922,67010.0,67009.0,0.25111374]
[1729997944449,0.18001825,67010.0,67009.0,0.25111374]
[1729997944669,0.19396825,67010.0,67009.0,0.25111374]
[1729997947334,0.19418944,67010.0,67009.0,0.25111374]
[1729997955411,0.18023944,67010.0,67009.0,0.25111374]
[1729997955612,0.19418823,67010.0,67009.0,0.25111374]
[1729997957001,0.11348823,67010.0,67009.0,0.25111374]
[1729997960679,0.12744927,67010.0,67009.0,0.25111374]
[1729997961100,0.13981967,67010.0,67009.0,0.25111374]
[1729997961556,0.04191967,67010.0,67009.0,0.25111374]
[1729997962001,0.00163944,67010.0,67009.0,0.25111374]
[1729997964525,0.01560856,67010.0,67009.0,0.25111374]
[1729997964993,0.01538737,67010.0,67009.0,0.63465779]
[1729997965687,0.01538976,67010.0,67009.0,0.63465779]
[1729997966129,0.01539014,67010.0,67009.0,0.63465779]
[1729997967271,0.00141825,67010.0,67009.0,0.63465779]
[1729997976669,0.00141825,67010.0,67009.0,0.63665779]
[1729997984703,0.00141825,67010.0,67009.0,0.64262479]
[1729997987201,0.00141825,67010.0,67009.0,0.46372479]
[1729997987418,0.00141825,67010.0,67009.0,0.51096111]
[1729997991549,0.00141825,67010.0,67009.0,0.83427791]
[1729997991767,0.00141825,67010.0,67009.0,0.85927791]
[1729997992203,0.00141825,67010.0,67009.0,0.66052479]
[1729997992421,0.00141825,67010.0,67009.0,0.75890135]
[1729997995640,0.00141825,67010.0,67009.0,0.85727791]
[1729997997466,0.00141825,67010.0,67009.0,0.85927791]
[1729997998802,0.00141825,67010.0,67009.0,0.76090135]
[1729998000131,0.00141825,67010.0,67009.0,0.85927791]
[1729998002699,0.00141825,67010.0,67009.0,0.85727791]
[1729998002963,0.00141825,67010.0,67009.0,0.66052479]
[1729998003199,0.00141825,67010.0,67009.0,0.75890135]
[1729998004344,0.00141825,67010.0,67009.0,0.76090135]
[1729998006631,0.00141825,67010.0,67009.0,0.80562595]
[1729998008293,0.00141825,67010.0,67009.0,0.8056417]
[1729998008536,0.00141825,67010.0,67009.0,0.76090135]